[Event "Asian Academies Hybrid Chess-ch 2021"]
[Site "Tornelo"]
[Date "2021.11.21"]
[Round "2.3"]
[White "Khaled waleed Abdullah"]
[Black "Amarathunga, Kosala Sandeepa Cham"]
[Result "1/2-1/2"]
[ECO "C18"]
[WhiteElo "1568"]
[BlackElo "1353"]
[Annotator "NA RC"]
[PlyCount "60"]
[EventDate "2021.11.21"]
[EventCountry "NET"]
[SourceTitle "playchess.com"]
[Source "ChessBase"]
[SourceQuality "1"]
[TimeControl "3600+30"]

1. e4 {[%emt 0:00:30]} e6 {[%emt 0:01:06]} 2. d4 {[%emt 0:00:12]} d5 {[%emt 0:00:42]} 3. Nc3 {[%emt 0:00:17]} Bb4 {[%emt 0:00:56]} 4. e5 {[%emt 0:02:55]} c5 {[%emt 0:01:17]} 5. a3 {[%emt 0:00:07]} Bxc3+ {[%emt 0:00:13]} 6. bxc3 {[%emt 0:00:11]} Ne7 {[%emt 0:00:23]} 7. Qg4 {[%emt 0:00:15]} cxd4 {[%emt 0:00:17]} 8. Qxg7 {[%emt 0:01:48]} Rg8 {[%emt 0:00:17]} 9. Qxh7 {[%emt 0:00:05]} Qc7 {[%emt 0:00:09]} 10. Ne2 {[%emt 0:01:28]} dxc3 {[%emt 0:03:17]} 11. f4 {[%emt 0:01:37]} Nbc6 {[%emt 0:08:18]} 12. Qd3 {[%emt 0:00:12]} Bd7 {[%emt 0:12:54]} 13. Rb1 {[%emt 0:01:45]} Nf5 {[%emt 0:03:17]} 14. Nxc3 {[%emt 0:02:29]} a6 {[%emt 0:00:52]} 15. g4 {[%emt 0:07:40]} Rxg4 {[%emt 0:16:13]} 16. Bh3 {[%emt 0:03:20]} Nxe5 {[%emt 0:00:16]} 17. fxe5 {[%emt 0:00:37]} Qxe5+ {[%emt 0:00:21]} 18. Ne2 {[%emt 0:11:28]} Re4 {[%emt 0:00:05]} 19. Rb4 {[%emt 0:08:24]} Rxb4 {[%emt 0:02:28]} 20. axb4 {[%emt 0:01:01]} Bb5 {[%emt 0:00:03]} 21. Bf4 {[%emt 0:03:46]} Qh8 {[%emt 0:02:33]} 22. Qc3 {[%emt 0:10:56]} Qh4+ {[%emt 0:00:08]} 23. Kd2 {[%emt 0:05:51]} d4 {[%emt 0:02:38]} 24. Qf3 {[%emt 0:02:51]} Bxe2 {[%emt 0:00:05]} 25. Kxe2 {[%emt 0:00:38]} d3+ {[%emt 0:00:04]} 26. Kd2 {[%emt 0:01:01]} Nd4 {[%emt 0:01:01]} 27. Qg4 {[%emt 0:00:39]} Qf2+ {[%emt 0:00:35]} 28. Kxd3 {[%emt 0:00:29]} Qxc2+ {[%emt 0:03:17]} 29. Ke3 {[%emt 0:00:54]} Nf5+ {[%emt 0:00:09]} 30. Kf3 {[%emt 0:00:11]} Nd4+ {[%emt 0:00:21]} 1/2-1/2

[Event "Asian Academies Hybrid Chess-ch 2021"]
[Site "Tornelo"]
[Date "2021.11.21"]
[Round "2.4"]
[White "Kazi Afsan Rawnak, Anan"]
[Black "Naimanov, Galymzhan"]
[Result "0-1"]
[ECO "B40"]
[WhiteElo "1410"]
[BlackElo "1256"]
[Annotator "NA RC"]
[PlyCount "52"]
[EventDate "2021.11.21"]
[EventCountry "NET"]
[SourceTitle "playchess.com"]
[Source "ChessBase"]
[SourceQuality "1"]
[TimeControl "3600+30"]

1. e4 {[%emt 0:00:30]} c5 {[%emt 0:00:37]} 2. Nf3 {[%emt 0:00:04]} e6 {[%emt 0:00:02]} 3. d4 {[%emt 0:00:13]} cxd4 {[%emt 0:00:06]} 4. Nxd4 {[%emt 0:00:03]} Nf6 {[%emt 0:00:04]} 5. f3 {[%emt 0:01:47]} d5 {[%emt 0:00:33]} 6. exd5 {[%emt 0:00:29]} Nxd5 {[%emt 0:00:33]} 7. c4 {[%emt 0:00:57]} Bb4+ {[%emt 0:04:27]} 8. Bd2 {[%emt 0:04:26]} Qh4+ {[%emt 0:02:35]} 9. g3 {[%emt 0:04:44]} Qxd4 {[%emt 0:01:07]} 10. cxd5 {[%emt 0:04:34]} Qxb2 {[%emt 0:09:08]} 11. Nc3 {[%emt 0:09:39]} Bxc3 {[%emt 0:00:25]} 12. Bxc3 {[%emt 0:00:44]} Qxc3+ {[%emt 0:00:05]} 13. Kf2 {[%emt 0:00:02]} O-O {[%emt 0:01:32]} 14. d6 {[%emt 0:00:27]} Bd7 {[%emt 0:02:08]} 15. Rc1 {[%emt 0:08:27]} Qb2+ {[%emt 0:00:31]} 16. Rc2 {[%emt 0:00:32]} Qb6+ {[%emt 0:00:18]} 17. Ke1 {[%emt 0:00:39]} Ba4 {[%emt 0:00:59]} 18. Rb2 {[%emt 0:00:43]} Bxd1 {[%emt 0:00:46]} 19. Rxb6 {[%emt 0:00:06]} Bxf3 {[%emt 0:00:09]} 20. Rb3 {[%emt 0:00:59]} Bxh1 {[%emt 0:00:06]} 21. Rd3 {[%emt 0:00:11]} Nd7 {[%emt 0:00:07]} 22. Be2 {[%emt 0:00:05]} Rac8 {[%emt 0:00:04]} 23. Kd2 {[%emt 0:00:10]} Rfd8 {[%emt 0:00:04]} 24. Bd1 {[%emt 0:00:05]} Nc5 {[%emt 0:00:11]} 25. Rd4 {[%emt 0:00:12]} Rxd6 {[%emt 0:00:03]} 26. Rxd6 {[%emt 0:00:17]} Ne4+ {[%emt 0:00:02]} 0-1

[Event "Asian Academies Hybrid Chess-ch 2021"]
[Site "Tornelo"]
[Date "2021.11.21"]
[Round "2.4"]
[White "Galiakbarov, Aldiyar"]
[Black "Aiyan, Rahman"]
[Result "1-0"]
[ECO "C50"]
[WhiteElo "1141"]
[BlackElo "1250"]
[Annotator "NA RC"]
[PlyCount "71"]
[EventDate "2021.11.21"]
[EventCountry "NET"]
[SourceTitle "playchess.com"]
[Source "ChessBase"]
[SourceQuality "1"]
[TimeControl "3600+30"]

1. e4 {[%emt 0:00:30]} e5 {[%emt 0:00:36]} 2. Nf3 {[%emt 0:00:04]} Nc6 {[%emt 0:00:05]} 3. d4 {[%emt 0:00:02]} exd4 {[%emt 0:00:03]} 4. Bc4 {[%emt 0:00:02]} Be7 {[%emt 0:00:09]} 5. c3 {[%emt 0:00:04]} dxc3 {[%emt 0:00:37]} 6. Qd5 {[%emt 0:00:04]} Nh6 {[%emt 0:01:37]} 7. Bxh6 {[%emt 0:00:06]} O-O {[%emt 0:00:02]} 8. Nxc3 {[%emt 0:00:04]} gxh6 {[%emt 0:00:02]} 9. Qh5 {[%emt 0:00:09]} Bf6 {[%emt 0:00:31]} 10. Qxh6 {[%emt 0:00:26]} Bg7 {[%emt 0:00:03]} 11. Qh5 {[%emt 0:00:05]} d6 {[%emt 0:00:53]} 12. Ng5 {[%emt 0:00:55]} h6 {[%emt 0:00:40]} 13. Nxf7 {[%emt 0:00:35]} Kh7 {[%emt 0:00:07]} 14. Nxd8 {[%emt 0:00:08]} Rxd8 {[%emt 0:00:12]} 15. O-O {[%emt 0:00:20]} Ne5 {[%emt 0:00:03]} 16. Be2 {[%emt 0:00:11]} Be6 {[%emt 0:00:09]} 17. f4 {[%emt 0:00:12]} Bf7 {[%emt 0:00:07]} 18. Qh4 {[%emt 0:00:15]} Ng6 {[%emt 0:00:14]} 19. Qg3 {[%emt 0:00:07]} Bd4+ {[%emt 0:00:12]} 20. Kh1 {[%emt 0:00:07]} Rg8 {[%emt 0:00:07]} 21. Qd3 {[%emt 0:00:11]} Bf6 {[%emt 0:00:13]} 22. e5 {[%emt 0:00:13]} Bg7 {[%emt 0:00:12]} 23. Bh5 {[%emt 0:00:56]} Rad8 {[%emt 0:00:19]} 24. e6 {[%emt 0:00:21]} Be8 {[%emt 0:00:18]} 25. Nd5 {[%emt 0:00:26]} c6 {[%emt 0:00:49]} 26. Ne7 {[%emt 0:00:10]} Bf6 {[%emt 0:00:05]} 27. Nxg8 {[%emt 0:00:11]} Kxg8 {[%emt 0:00:05]} 28. Bxg6 {[%emt 0:00:04]} Bxg6 {[%emt 0:00:02]} 29. Qxg6+ {[%emt 0:00:03]} Bg7 {[%emt 0:00:15]} 30. e7 {[%emt 0:00:03]} Ra8 {[%emt 0:00:04]} 31. f5 {[%emt 0:00:06]} Kh8 {[%emt 0:00:03]} 32. f6 {[%emt 0:00:04]} Bxf6 {[%emt 0:00:02]} 33. Qxf6+ {[%emt 0:00:02]} Kg8 {[%emt 0:00:01]} 34. Qg6+ {[%emt 0:00:02]} Kh8 {[%emt 0:00:03]} 35. Rf8+ {[%emt 0:00:02]} Rxf8 {[%emt 0:00:01]} 36. exf8=R# {[%emt 0:00:07]} 1-0

[Event "Asian Academies Hybrid Chess-ch 2021"]
[Site "Tornelo"]
[Date "2021.11.21"]
[Round "2.4"]
[White "Omarova, Aisha"]
[Black "Wadifa, Ahmed"]
[Result "0-1"]
[ECO "E61"]
[WhiteElo "1012"]
[BlackElo "1759"]
[Annotator "NA RC"]
[PlyCount "114"]
[EventDate "2021.11.21"]
[EventCountry "NET"]
[SourceTitle "playchess.com"]
[Source "ChessBase"]
[SourceQuality "1"]
[TimeControl "3600+30"]

1. c4 {[%emt 0:00:30]} Nf6 {[%emt 0:00:53]} 2. Nc3 {[%emt 0:00:05]} g6 {[%emt 0:00:02]} 3. e3 {[%emt 0:00:03]} Bg7 {[%emt 0:00:02]} 4. Nf3 {[%emt 0:00:02]} O-O {[%emt 0:00:01]} 5. d4 {[%emt 0:00:15]} d6 {[%emt 0:00:07]} 6. a3 {[%emt 0:00:05]} c5 {[%emt 0:00:35]} 7. Be2 {[%emt 0:01:20]} Nbd7 {[%emt 0:00:51]} 8. O-O {[%emt 0:02:48]} a6 {[%emt 0:01:28]} 9. Nd2 {[%emt 0:05:07]} cxd4 {[%emt 0:02:37]} 10. exd4 {[%emt 0:00:30]} Qb6 {[%emt 0:00:26]} 11. d5 {[%emt 0:09:47]} Ne5 {[%emt 0:00:41]} 12. Nf3 {[%emt 0:03:27]} Nxf3+ {[%emt 0:02:23]} 13. Bxf3 {[%emt 0:06:15]} Bf5 {[%emt 0:00:36]} 14. Re1 {[%emt 0:00:47]} Qc7 {[%emt 0:03:03]} 15. Be3 {[%emt 0:00:56]} Rac8 {[%emt 0:00:48]} 16. Na4 {[%emt 0:03:05]} b5 {[%emt 0:10:38]} 17. cxb5 {[%emt 0:00:35]} axb5 {[%emt 0:00:04]} 18. Rc1 {[%emt 0:00:36]} Qb7 {[%emt 0:00:45]} 19. Nc3 {[%emt 0:05:39]} b4 {[%emt 0:00:47]} 20. Na4 {[%emt 0:00:57]} Rxc1 {[%emt 0:00:35]} 21. Qxc1 {[%emt 0:00:42]} Rc8 {[%emt 0:02:28]} 22. Qd2 {[%emt 0:01:49]} bxa3 {[%emt 0:00:11]} 23. bxa3 {[%emt 0:02:05]} Ra8 {[%emt 0:02:50]} 24. Qd4 {[%emt 0:12:33]} Nxd5 {[%emt 0:03:46]} 25. Qxd5 {[%emt 0:04:48]} Qxd5 {[%emt 0:00:37]} 26. Bxd5 {[%emt 0:00:03]} Rxa4 {[%emt 0:00:02]} 27. Bc1 {[%emt 0:00:06]} Rd4 {[%emt 0:01:42]} 28. Bb7 {[%emt 0:02:00]} Bd7 {[%emt 0:00:44]} 29. g3 {[%emt 0:01:05]} e6 {[%emt 0:00:42]} 30. Bb2 {[%emt 0:00:12]} Ra4 {[%emt 0:01:21]} 31. Bc1 {[%emt 0:01:33]} d5 {[%emt 0:00:09]} 32. Re3 {[%emt 0:00:41]} Bh6 {[%emt 0:05:35]} 33. Rc3 {[%emt 0:01:53]} Bxc1 {[%emt 0:00:06]} 34. Rxc1 {[%emt 0:00:04]} Rxa3 {[%emt 0:00:29]} 35. Rc7 {[%emt 0:00:03]} Bb5 {[%emt 0:00:03]} 36. h4 {[%emt 0:00:47]} h5 {[%emt 0:00:20]} 37. Rc8+ {[%emt 0:01:52]} Kg7 {[%emt 0:00:03]} 38. Rc7 {[%emt 0:00:16]} Ra7 {[%emt 0:00:13]} 39. Kh2 {[%emt 0:00:36]} Ba6 {[%emt 0:00:10]} 40. f4 {[%emt 0:00:31]} Rxb7 {[%emt 0:00:05]} 41. Rxb7 {[%emt 0:00:03]} Bxb7 {[%emt 0:00:02]} 42. Kg1 {[%emt 0:00:02]} Kf6 {[%emt 0:00:02]} 43. Kf2 {[%emt 0:00:02]} Kf5 {[%emt 0:00:01]} 44. Ke3 {[%emt 0:00:06]} Kg4 {[%emt 0:00:05]} 45. Kf2 {[%emt 0:00:03]} d4 {[%emt 0:00:02]} 46. Ke2 {[%emt 0:00:14]} Be4 {[%emt 0:00:03]} 47. Kf2 {[%emt 0:00:08]} Kh3 {[%emt 0:00:03]} 48. Ke2 {[%emt 0:00:04]} Kxg3 {[%emt 0:00:01]} 49. Kf1 {[%emt 0:00:06]} d3 {[%emt 0:00:06]} 50. Ke1 {[%emt 0:00:03]} Kxf4 {[%emt 0:00:02]} 51. Kd2 {[%emt 0:00:02]} e5 {[%emt 0:00:02]} 52. Ke1 {[%emt 0:00:03]} Ke3 {[%emt 0:00:02]} 53. Kd1 {[%emt 0:00:02]} Bf3+ {[%emt 0:00:05]} 54. Kc1 {[%emt 0:00:03]} d2+ {[%emt 0:00:02]} 55. Kb2 {[%emt 0:00:03]} d1=Q {[%emt 0:00:03]} 56. Ka2 {[%emt 0:00:02]} Bd5+ {[%emt 0:00:03]} 57. Ka3 {[%emt 0:00:04]} Qb3# {[%emt 0:00:02]} 0-1